bitfinex/quotes_ETHUSD_20240824
["timestamp","ask_amount","ask_price","bid_price","bid_amount"]
[1724521793364,0.03870377,2798.1,2797.8,3.5742]
[1724521797200,0.03870377,2798.1,2797.8,3.57416]
[1724521797567,0.03870377,2798.1,2797.8,3.57415]
[1724521797768,0.03870377,2798.1,2797.8,3.57414]
[1724521798164,0.03870377,2798.1,2798.0,1.23989431]
[1724521798398,0.03870377,2798.1,2798.0,8.38785431]
[1724521798568,0.74423132,2798.4,2798.1,3.57377]
[1724521798765,0.17063957,2798.3,2798.1,3.57377]
[1724521799096,0.03837035,2798.3,2798.1,3.57377]
[1724521799805,2.4227,2798.2,2797.9,3.57402]
[1724521799962,2.46112356,2798.2,2797.9,3.57402]
[1724521801771,0.03842356,2798.2,2798.0,3.57389]
[1724521802100,0.74423132,2798.4,2798.2,3.5737]
[1724521802508,0.74423132,2798.6,2798.3,4.81348431]
[1724521802667,1.11634698,2798.7,2798.4,3.57342]
[1724521802668,0.74423132,2798.7,2798.4,3.57342]
[1724521802871,0.74423132,2798.8,2798.5,3.57325]
[1724521803070,3.53904698,2799.0,2798.6,7.14634]
[1724521803071,0.74423132,2798.9,2798.6,7.14634]
[1724521803321,0.74423132,2798.9,2798.6,7.14626]
[1724521803545,0.74423132,2798.9,2798.7,3.57307]
[1724521803826,0.74423132,2799.0,2798.8,9.44832]
[1724521803971,1.48846264,2799.3,2798.8,9.44832]
[1724521803972,0.74423132,2799.1,2798.8,5.87537]
[1724521804370,0.74423132,2799.2,2798.9,1.23989431]
[1724521804824,0.74423132,2799.2,2799.0,3.5727]
[1724521805026,0.74423132,2799.3,2799.0,3.5727]
[1724521805256,0.13211377,2799.2,2799.0,3.5727]
[1724521805449,0.74423132,2799.3,2799.0,3.5727]
[1724521805573,0.13210049,2799.2,2799.0,3.5727]
[1724521805776,0.74423132,2799.4,2799.2,2.3025]
[1724521806025,0.74423132,2799.6,2799.3,4.81212431]
[1724521806175,0.74423132,2799.6,2799.2,2.3025]
[1724521806176,0.74423132,2799.8,2799.6,3.57193]
[1724521806376,0.74423132,2799.9,2799.7,3.5718]
[1724521806605,0.74423132,2800.0,2799.5,4.81185431]
[1724521806845,0.87611905,2799.9,2799.4,3.57213]
[1724521806979,0.87611905,2799.9,2799.2,5.87489]
[1724521806980,3.07343132,2799.8,2799.2,3.57235]
[1724521807178,0.87618215,2799.7,2799.2,3.57235]
[1724521807394,3.07343132,2799.8,2799.2,3.57235]
[1724521807609,0.13194307,2799.7,2799.2,3.57235]
[1724521807990,2.90403132,2799.8,2799.3,3.57232]
[1724521808680,2.90403132,2799.8,2799.2,3.57235]
[1724521808875,0.13191593,2799.7,2799.2,3.57235]
[1724521809121,2.90403132,2799.8,2799.2,3.57235]
[1724521810130,0.1318862,2799.7,2799.2,7.14471]
[1724521810287,2.90403132,2799.8,2799.2,7.14471]
[1724521810483,2.90403132,2799.8,2799.2,3.57235]
[1724521810925,0.13187615,2799.7,2799.2,3.57235]
[1724521811121,2.90403132,2799.8,2799.2,3.57235]
[1724521811435,2.1598,2799.8,2799.2,3.57235]
[1724521811599,2.1598,2799.8,2799.1,6.57254]
[1724521811805,0.13186908,2799.7,2799.1,3.0]
[1724521812003,2.90403132,2799.8,2799.1,6.57249]
[1724521812431,2.90403132,2799.8,2799.2,3.57244]
[1724521813284,2.1598,2799.8,2799.2,3.57244]
[1724521813480,0.74423132,2799.9,2799.3,2.3987]
[1724521813688,0.74423132,2799.9,2799.4,3.57211]
[1724521814124,0.74423132,2799.9,2799.6,3.57192]
[1724521814332,0.74423132,2800.0,2799.6,3.57192]
[1724521815206,0.13172146,2799.9,2799.6,3.57192]
[1724521815547,0.74423132,2800.0,2799.4,3.57211]
[1724521815751,0.1317176,2799.9,2799.4,3.57211]
[1724521816043,0.1317176,2799.9,2799.1,5.3987]
[1724521816044,0.03981525,2799.9,2799.1,5.3987]
[1724521816239,0.03981525,2799.9,2799.5,3.57197]
[1724521816387,0.74423132,2800.0,2799.5,5.97067]
[1724521816584,0.03984685,2799.9,2799.4,3.57218]
[1724521816860,0.74423132,2800.1,2799.6,3.57193]
[1724521817004,0.03984644,2799.8,2799.6,3.57193]
[1724521817341,0.74423132,2800.1,2799.6,3.57193]
[1724521817552,0.03984602,2799.7,2799.6,3.57193]
[1724521817761,0.74423132,2800.1,2799.6,3.57193]
[1724521818104,0.03984727,2800.0,2799.6,3.57193]
[1724521818739,3.07343132,2800.2,2799.6,3.57193]
[1724521818918,0.03984685,2799.9,2799.6,3.57193]
[1724521819133,0.74423132,2800.1,2799.6,3.57193]
[1724521819358,0.03984644,2799.8,2799.6,3.57193]
[1724521819536,0.74423132,2800.1,2799.6,3.57193]
[1724521819745,0.03984602,2799.7,2799.6,3.57193]
[1724521819911,0.74423132,2800.1,2799.6,3.57193]
[1724521820314,0.03984727,2800.0,2799.6,3.57193]
[1724521821489,0.03984727,2800.0,2799.4,7.14426]
[1724521822588,0.03984727,2800.0,2799.4,7.14419]
[1724521822783,0.03984727,2800.0,2799.5,3.57205]
[1724521822987,3.07343132,2800.2,2799.5,3.57205]
[1724521823194,0.03984685,2799.9,2799.5,3.57205]
[1724521823370,3.07343132,2800.2,2799.5,3.57205]
[1724521823550,0.17142064,2800.1,2799.5,3.57205]
[1724521823761,0.03984769,2800.1,2799.5,3.57205]
[1724521827116,0.03984769,2800.1,2799.3,9.7087]
[1724521827563,2.395,2799.8,2799.3,7.31]
[1724521827772,0.03995889,2799.7,2799.3,7.31]
[1724521828071,2.395,2799.8,2799.3,7.31]
[1724521828267,0.03995847,2799.6,2799.3,7.31]
[1724521828468,2.395,2799.8,2799.1,10.14498]
[1724521828691,0.03995805,2799.5,2799.1,10.14498]
[1724521828895,2.395,2799.8,2799.1,10.14498]
[1724521829207,2.395,2799.8,2799.2,3.57244]
[1724521829208,0.03995764,2799.4,2799.2,3.57244]
[1724521829500,2.395,2799.8,2799.2,3.57244]
[1724521829655,0.03995722,2799.3,2799.2,3.57244]
[1724521829852,2.395,2799.8,2799.2,6.57244]
[1724521830087,0.03995722,2799.3,2799.2,3.57244]
[1724521830271,2.395,2799.8,2799.2,3.0]
[1724521830567,0.03995722,2799.3,2799.2,3.57237]
[1724521830798,0.03995722,2799.3,2799.2,6.57237]
[1724521831006,2.395,2799.8,2799.2,6.57237]
[1724521831400,0.03995889,2799.7,2799.2,6.57237]
[1724521833136,2.395,2799.8,2799.2,6.57237]
[1724521833446,0.03995889,2799.7,2799.3,3.5723]
[1724521833641,2.395,2799.8,2799.3,3.5723]
[1724521833835,0.03995847,2799.6,2799.3,3.5723]
[1724521833984,2.395,2799.8,2799.3,3.5723]
[1724521834185,0.03995889,2799.7,2799.3,3.5723]
[1724521834478,2.395,2799.8,2799.3,3.5723]
[1724521834682,0.03995847,2799.6,2799.3,3.5723]
[1724521834916,2.395,2799.8,2799.3,3.5723]
[1724521835353,0.03995889,2799.7,2799.3,3.5723]
[1724521835644,2.395,2799.8,2799.3,3.5723]
[1724521835935,0.03995847,2799.6,2799.3,3.5723]
[1724521836088,0.03995889,2799.7,2799.3,3.5723]
[1724521836332,0.03995805,2799.5,2799.3,7.14454]
[1724521836683,2.395,2799.8,2799.3,3.57224]
[1724521836830,0.03999514,2799.4,2799.3,3.57224]
[1724521837030,2.395,2799.8,2799.3,3.57224]
[1724521837225,0.03999514,2799.4,2799.3,3.57224]
[1724521837553,2.395,2799.8,2799.3,3.57224]
[1724521837754,2.395,2799.8,2799.3,7.14448]
[1724521838052,0.04009817,2799.7,2799.3,7.14448]
[1724521838372,2.395,2799.8,2799.3,7.14447]
[1724521838668,0.04009817,2799.7,2799.3,3.57223]
[1724521838832,3.13923132,2799.8,2799.3,7.14448]
[1724521839033,0.04009776,2799.6,2799.3,7.14448]
[1724521839234,3.13923132,2799.8,2799.4,3.57218]
[1724521839430,0.04009734,2799.5,2799.4,3.57218]
[1724521839637,3.13923132,2799.8,2799.4,3.57218]
[1724521839947,0.04009734,2799.5,2799.4,3.57218]
[1724521840159,3.13923132,2799.8,2799.4,3.57218]
[1724521840355,0.04009734,2799.5,2799.4,3.57218]
[1724521840558,3.13923132,2799.8,2799.5,3.57205]
[1724521841195,0.74423132,2799.8,2799.7,3.57181]
[1724521841489,0.87628339,2799.8,2799.7,3.57181]
[1724521841673,0.13205207,2799.8,2799.7,3.57181]
[1724521842252,0.13205207,2799.8,2799.5,3.57195]
[1724521842601,5.42355917,2800.3,2799.5,3.57195]
[1724521842602,2.3e-06,2800.4,2800.1,3.5713]
[1724521842890,1.48846264,2801.2,2800.6,3.57058]
[1724521843095,1.48846264,2801.2,2800.5,3.57069]
[1724521843096,1.48846264,2801.2,2800.7,3.57053]
[1724521843261,1.23605982,2801.0,2799.9,3.57149]
[1724521843461,2.395,2800.9,2800.2,3.57116]
[1724521843709,2.395,2800.9,2800.3,3.57102]
[1724521844050,3.88346264,2800.9,2800.3,3.57102]
[1724521844387,2.395,2800.9,2800.3,3.57102]
[1724521845572,3.88346264,2800.9,2800.3,3.57102]
[1724521845788,3.88346264,2800.9,2800.3,7.14198]
[1724521846002,0.03755448,2800.8,2800.1,3.57125]
[1724521846179,1.65017289,2800.8,2800.1,3.57125]
[1724521846382,1.52601712,2800.8,2800.1,3.57125]
[1724521846588,0.12415823,2800.7,2800.1,3.57125]
[1724521846752,1.52601712,2800.8,2800.1,3.57125]
[1724521847092,0.03755407,2800.7,2800.1,7.14242]
[1724521847246,0.03755407,2800.7,2800.1,3.5712]
[1724521847451,0.03755407,2800.7,2800.0,1.23605982]
[1724521847691,0.03755407,2800.7,2800.0,3.0]
[1724521847692,1.23605982,2800.6,2800.0,3.0]
[1724521847892,1.23605982,2800.6,2799.8,7.31]
[1724521847893,1.48846264,2800.5,2799.8,7.31]
[1724521848089,1.48846264,2800.4,2799.8,10.88165]
[1724521848391,1.48846264,2800.3,2799.8,10.88167]
[1724521848590,2.04833563,2800.3,2799.8,10.88167]
[1724521848782,0.03755199,2800.2,2799.8,7.31]
[1724521849095,1.48846264,2800.3,2799.8,10.88168]
[1724521849294,0.03755157,2800.1,2799.8,10.88168]
[1724521849484,1.48846264,2800.4,2799.8,3.57168]
[1724521849678,0.03755116,2800.0,2799.8,3.57168]
[1724521849879,1.48846264,2800.3,2799.8,3.57168]
[1724521850093,0.03755074,2799.9,2799.8,3.57168]
[1724521850391,1.48846264,2800.3,2799.8,3.57168]
[1724521850876,0.03755144,2800.2,2799.8,3.57168]
[1724521851084,1.48846264,2800.3,2799.8,3.57168]
[1724521851335,0.03755157,2800.1,2799.8,3.57168]
[1724521851594,1.11534374,2800.1,2799.8,3.57168]
[1724521851796,1.52601463,2800.2,2799.8,3.57168]
[1724521851797,0.03755116,2800.0,2799.8,3.57168]
[1724521851990,0.03755116,2800.0,2799.9,3.57155]
[1724521852192,1.11534374,2800.1,2799.9,3.57155]
[1724521852394,0.03755134,2800.0,2799.9,3.57155]
[1724521852690,0.78109828,2800.0,2799.9,3.57155]
[1724521852892,0.03755134,2800.0,2799.9,3.57155]
[1724521853452,0.78109828,2800.0,2799.9,3.57155]
[1724521853658,0.03755134,2800.0,2799.9,3.57155]
[1724521853956,0.78109828,2800.0,2799.9,3.57155]
[1724521855756,0.78109828,2800.0,2799.7,3.57172]
[1724521855963,0.74354694,2799.9,2799.8,3.57168]
[1724521856165,0.78109828,2800.0,2799.8,3.57168]
[1724521856471,0.03788859,2799.9,2799.8,3.57168]
[1724521857001,0.03788859,2799.9,2799.7,4.80777982]
[1724521857609,0.03788859,2799.9,2799.8,3.57168]
[1724521860866,0.74354694,2800.1,2799.8,3.57168]
[1724521861058,0.74354694,2800.1,2799.9,4.80758982]
[1724521861265,0.74354694,2800.2,2800.0,3.57142]
[1724521861606,0.74354694,2800.2,2799.9,4.80753982]
[1724521863208,0.74354694,2800.2,2799.9,4.80752982]
[1724521863665,0.74354694,2800.2,2799.9,8.37898982]
[1724521864009,0.74354694,2800.2,2799.9,4.80751982]
[1724521865308,0.74354694,2800.2,2800.0,3.57136]
[1724521865623,0.74354694,2800.3,2800.1,3.57122]
[1724521865764,0.74354694,2800.2,2800.1,3.57122]
[1724521866363,0.74354694,2800.2,2799.9,8.37898982]
[1724521866563,0.74354694,2800.2,2800.0,3.57138]
[1724521866965,0.74354694,2800.3,2800.0,3.57138]
[1724521867768,0.74354694,2800.3,2799.9,5.8900288]
[1724521867964,0.74354694,2800.2,2799.9,5.8900288]
[1724521869964,0.74354694,2800.3,2799.9,5.8900288]
[1724521870405,0.74354694,2800.2,2799.9,5.8900288]
[1724521871260,0.74354694,2800.2,2799.9,4.80749982]
[1724521873642,1.11534374,2800.3,2799.7,6.01805]
[1724521873643,0.74354694,2800.1,2799.7,7.25406982]
[1724521874313,0.0382475,2800.0,2799.7,7.25406982]
[1724521875157,0.0382475,2800.0,2799.7,3.68235982]
[1724521875459,0.0382475,2800.0,2799.5,7.12033982]
[1724521875605,0.0382475,2800.0,2799.6,1.74303398]
[1724521875806,0.78179444,2800.0,2799.6,4.74303398]
[1724521876222,0.78179444,2800.0,2799.7,1.23605982]
[1724521876402,0.78179444,2800.0,2799.7,4.80784982]
[1724521878171,0.0382475,2800.0,2799.7,4.80778982]
[1724521878382,0.78179444,2800.0,2799.7,6.3513012]
[1724521878674,0.78179444,2800.0,2799.7,9.9230412]
[1724521878971,0.74354694,2800.2,2799.9,3.57143]
[1724521879114,0.74354694,2800.2,2800.1,3.5713]
[1724521880171,0.74354694,2800.3,2800.1,3.5713]
[1724521880467,1.11534374,2800.4,2800.1,3.5713]
[1724521880468,0.74354694,2800.2,2800.1,3.5713]
[1724521881081,0.74354694,2800.3,2800.2,3.57117]
[1724521882124,1.11534374,2800.4,2800.2,3.57117]
[1724521882125,0.74354694,2800.4,2800.2,3.57117]
[1724521882375,0.74354694,2800.3,2800.2,3.57117]
[1724521882540,0.74354694,2800.3,2800.2,0.92164078]
[1724521882942,0.74354694,2800.3,2800.2,4.49281078]
[1724521883137,0.74354694,2800.4,2800.2,0.92164078]
[1724521883341,0.74354694,2800.4,2800.1,4.80725982]
[1724521883342,0.74354694,2800.3,2800.1,4.80725982]
[1724521886259,0.74354694,2800.2,2800.1,4.80725982]
[1724521887165,0.74354694,2800.3,2800.1,4.80725982]
[1724521887402,0.74354694,2800.2,2800.1,4.80725982]
[1724521887607,0.03831725,2800.2,2800.1,8.37847982]
[1724521887905,0.74354694,2800.3,2800.2,9.56164]
[1724521888107,0.74354694,2800.3,2800.2,12.56164]
[1724521888273,0.74354694,2800.4,2800.3,3.57104]
[1724521888471,1.85889068,2800.5,2800.4,3.57091]
[1724521889024,0.74354694,2800.5,2800.4,3.57091]
[1724521889229,0.74354694,2800.5,2800.4,6.92064098]
[1724521890884,0.78191975,2800.5,2800.4,3.34973098]
[1724521891141,3.08981975,2800.5,2800.3,3.0]
[1724521891305,3.08981975,2800.5,2800.2,19.7]
[1724521891306,3.46161655,2800.5,2800.2,19.7]
[1724521891638,0.74380318,2800.3,2800.2,19.7]
[1724521891840,0.74380318,2800.3,2800.2,22.7]
[1724521891987,0.78217625,2800.3,2800.2,22.7]
[1724521893943,0.78217625,2800.3,2800.2,26.27117]
[1724521894516,0.78217625,2800.3,2800.2,6.57117]
[1724521895854,0.78217625,2800.3,2800.2,3.0]
[1724521896198,0.78217625,2800.3,2800.2,6.57117]
[1724521896446,0.78217625,2800.3,2800.2,3.0]
[1724521896653,3.09007625,2800.3,2800.2,3.0]
[1724521896850,3.09007625,2800.3,2800.1,6.57122]
[1724521897027,0.74380318,2800.3,2800.1,6.57122]
[1724521897615,0.74380318,2800.3,2800.2,3.57117]
[1724521897815,0.74380318,2800.3,2800.2,6.57117]
[1724521898052,0.78214065,2800.3,2800.2,3.0]
[1724521902268,0.78214065,2800.3,2800.2,6.57117]
[1724521902924,0.74380318,2800.3,2800.2,6.57117]
[1724521903126,0.78214065,2800.3,2800.2,6.57117]
[1724521903362,0.03833747,2800.3,2800.2,6.57117]
[1724521905028,0.03833747,2800.3,2800.2,3.0]
[1724521905928,1.11534374,2800.3,2800.2,3.0]
[1724521906251,1.15368121,2800.3,2800.2,3.0]
[1724521906467,1.15368121,2800.3,2799.7,28.24605982]
[1724521906468,2.3079,2800.2,2799.7,3.57169]
[1724521906755,0.74378742,2799.9,2799.4,9.7293]
[1724521906966,0.03831396,2799.8,2799.7,3.57173]
[1724521908148,0.03831396,2799.8,2799.7,6.57173]
[1724521908378,0.73471506,2799.9,2799.7,6.57173]
[1724521908583,0.03702075,2799.8,2799.7,3.0]
[1724521908793,0.03702075,2799.8,2799.6,3.0]
[1724521909003,2.29032075,2799.8,2799.6,6.57193]
[1724521909150,2.29032075,2799.8,2799.6,6.57185]
[1724521909454,0.03702075,2799.8,2799.7,3.57181]
[1724521909653,0.03702075,2799.8,2799.7,6.57181]
[1724521915915,1.11568114,2800.0,2799.7,6.57181]
[1724521916421,0.0369408,2799.9,2799.7,6.57181]
[1724521917925,1.15262194,2799.9,2799.7,6.57181]
[1724521918279,1.15262194,2799.9,2799.7,6.57173]
[1724521918576,0.74317025,2799.8,2799.7,6.57173]
[1724521918776,0.78011063,2799.8,2799.7,6.57173]
[1724521919487,0.03694038,2799.8,2799.7,6.57173]
[1724521921660,0.03694038,2799.8,2799.7,11.28150598]
[1724521921780,0.03694038,2799.8,2799.7,14.9388658]
[1724521921985,0.74317025,2800.1,2800.0,3.57142]
[1724521922241,0.77991891,2800.1,2800.0,3.57142]
[1724521925126,0.77991891,2800.1,2799.9,3.57151]
[1724521925333,0.74317025,2800.0,2799.9,3.57151]
[1724521925677,0.7799185,2800.0,2799.7,6.5717]
[1724521925884,0.74317025,2799.9,2799.7,3.0]
[1724521926277,0.03674742,2799.8,2799.7,3.0]
[1724521928628,0.03674742,2799.8,2799.7,6.57181]
[1724521929332,0.74317025,2799.9,2799.7,8.28876059]
[1724521929646,0.03674742,2799.8,2799.7,8.28876059]
[1724521930485,0.03674742,2799.8,2799.7,9.52482041]
[1724521933779,0.03674742,2799.8,2799.7,15.42663041]
[1724521934077,0.74317025,2800.1,2800.0,3.57142]
[1724521934297,0.74317025,2800.1,2800.0,4.285722]
[1724521935389,1.15223125,2800.1,2799.8,3.57158]
[1724521935592,0.74250179,2800.0,2799.8,3.57158]
[1724521935888,0.03658144,2799.9,2799.8,3.57158]
[1724521936445,0.77908323,2799.9,2799.8,3.57158]
[1724521936990,0.03658144,2799.9,2799.8,3.57158]
[1724521937193,0.03658144,2799.9,2799.8,5.11421804]
[1724521937490,0.74250179,2800.0,2799.8,5.11421804]
[1724521937491,0.74250179,2800.0,2799.9,3.57155]
[1724521938013,0.77908365,2800.0,2799.9,3.57155]
[1724521940251,0.77908365,2800.0,2799.8,1.54263804]
[1724521940445,0.77908365,2800.0,2799.8,3.57167]
[1724521941550,0.74250179,2799.9,2799.8,3.57167]
[1724521941882,0.77904872,2799.9,2799.8,3.57167]
[1724521942970,0.77904872,2799.9,2799.7,8.9017]
[1724521944292,0.77904872,2799.9,2799.8,3.57168]
[1724521945011,0.77904872,2799.9,2799.7,3.0]
[1724521945012,1.15222807,2799.9,2799.7,3.0]
[1724521945187,1.15222807,2799.9,2799.5,19.7]
[1724521945188,1.15222807,2799.9,2799.6,3.0]
[1724521945747,1.11568114,2799.8,2799.6,3.0]
[1724521946250,0.03659461,2799.7,2799.6,3.0]
[1724521946741,1.11568114,2799.8,2799.5,19.7]
[1724521946894,0.03659461,2799.7,2799.5,19.7]
[1724521947095,1.15227575,2799.7,2799.5,19.7]
[1724521947344,1.11568114,2799.7,2799.5,19.7]
[1724521947552,0.0365942,2799.6,2799.5,19.7]
[1724521947703,0.0365942,2799.6,2799.4,3.5721]
[1724521947899,1.11568114,2799.7,2799.4,3.5721]
[1724521948256,0.0365942,2799.6,2799.5,3.57206]
[1724521948736,1.11568114,2799.7,2799.5,3.57206]
[1724521949051,0.0365942,2799.6,2799.5,3.57206]
[1724521949551,1.11568114,2799.7,2799.3,1.23605982]
[1724521949698,0.0365942,2799.6,2799.4,3.57215]
[1724521950046,0.0365942,2799.6,2799.4,7.1443]
[1724521950346,0.0365942,2799.6,2799.5,3.57206]
[1724521951511,0.0365942,2799.6,2799.3,7.19893503]
[1724521951840,1.11568114,2799.5,2799.2,22.7]
[1724521952012,1.15227492,2799.5,2799.3,3.0]
[1724521952853,1.11568114,2799.4,2799.3,3.0]
[1724521953013,1.11568114,2799.4,2798.9,8.38157982]
[1724521953014,0.12419785,2799.4,2799.0,3.0]
[1724521953352,1.11572213,2799.3,2798.9,7.1455]
[1724521953644,0.03641027,2799.2,2798.9,7.1455]
[1724521953843,1.1521324,2799.2,2798.9,7.1455]
[1724521954046,1.11572213,2799.2,2799.0,3.57267]
[1724521954251,0.03630263,2799.1,2799.0,3.57267]
[1724521954555,0.03630263,2799.1,2798.9,3.57275]
[1724521955052,0.74334181,2799.2,2798.9,3.57275]
[1724521955553,0.03630263,2799.1,2798.9,3.57275]
[1724521956355,0.03630263,2799.1,2798.9,8.38153982]
[1724521956533,0.03630263,2799.1,2798.9,11.94272997]
[1724521956899,0.74334181,2799.3,2798.9,11.94272997]
[1724521957235,0.03590094,2799.2,2798.9,11.94272997]
[1724521957439,0.74334181,2799.3,2798.9,11.94272997]
[1724521957951,0.03590094,2799.2,2798.9,11.94272997]
[1724521958366,0.74334181,2799.3,2798.9,8.36997997]
[1724521958569,0.74334181,2799.3,2798.9,11.94271997]
[1724521958771,0.03590094,2799.2,2798.9,11.94271997]
[1724521959081,0.74334181,2799.3,2798.9,11.94271997]
[1724521959573,0.03590094,2799.2,2798.9,8.36997997]
[1724521959931,0.74334181,2799.3,2798.9,8.36997997]
[1724521960332,0.03590094,2799.2,2798.9,11.94272997]
[1724521960751,0.74334181,2799.3,2798.9,11.94272997]
[1724521960952,0.03590094,2799.2,2798.9,11.94272997]
[1724521961492,0.74334181,2799.4,2799.0,3.57269]
[1724521961851,0.03590136,2799.3,2799.0,3.57269]
[1724521962052,0.03590136,2799.3,2798.9,4.80878982]
[1724521963496,0.03590136,2799.3,2798.9,8.38152982]
[1724521963848,0.03590136,2799.3,2798.9,4.80878982]
[1724521965467,0.03590136,2799.3,2798.9,8.38153982]
[1724521966198,0.03590136,2799.3,2799.0,3.57269]
[1724521967770,0.03590136,2799.3,2799.1,6.02325]
[1724521968102,0.03590136,2799.3,2799.1,2.4507]
[1724521968552,0.03590136,2799.3,2799.0,4.41081798]
[1724521971001,0.03579369,2799.2,2799.0,4.41081798]
[1724521971301,0.74334181,2799.5,2799.0,4.41081798]
[1724521971504,0.74334181,2799.5,2799.0,3.57267]
[1724521971667,0.03576236,2799.4,2799.0,3.57267]
[1724521973700,0.77910417,2799.4,2799.0,3.57267]
[1724521975753,0.03576236,2799.4,2799.0,3.57267]
[1724521976404,0.77910417,2799.4,2799.0,3.57267]
[1724521976755,0.03576236,2799.4,2799.0,3.57267]
[1724521977049,0.77910417,2799.4,2799.0,3.57267]
[1724521981606,0.77910417,2799.4,2799.1,3.57255]
[1724521984102,3.13470417,2799.4,2798.9,3.57271]
[1724521984322,0.74334181,2799.3,2798.9,3.57271]
[1724521984675,0.03573471,2799.2,2798.9,3.57271]
[1724521984917,0.03573471,2799.2,2798.9,5.32965698]
[1724521985132,0.74334181,2799.3,2798.9,5.32965698]
[1724521985420,0.74334181,2799.3,2799.0,3.57263]
[1724521985818,0.03573471,2799.2,2799.0,3.57263]
[1724521986006,0.74334181,2799.3,2799.0,3.57263]
[1724521986402,0.03573471,2799.2,2799.0,3.57263]
[1724521986721,0.74334181,2799.3,2799.0,3.57263]
[1724521986893,0.03573429,2799.1,2799.0,3.57263]
[1724521987130,0.74334181,2799.3,2799.0,3.57263]
[1724521987325,0.03573429,2799.1,2799.0,3.57263]
[1724521987542,0.74334181,2799.2,2799.0,3.57263]
[1724521987740,0.03573429,2799.1,2799.0,3.57263]
[1724521989364,0.03573429,2799.1,2798.9,3.57279]
[1724521991362,0.7790761,2799.1,2798.9,3.57279]
[1724521991873,0.7790761,2799.1,2798.8,4.80898982]
[1724521992075,0.7790761,2799.1,2798.9,3.0]
[1724521992281,0.7790761,2799.1,2798.8,3.0]
[1724521992878,0.7790761,2799.1,2798.8,6.57295]
[1724521993382,0.7790761,2799.1,2799.0,3.5727]
[1724521993588,0.7790761,2799.1,2799.0,8.38145982]
[1724521993734,0.74334181,2799.1,2799.0,8.38145982]
[1724521994569,0.74334181,2799.1,2799.0,10.81035982]
[1724521994982,0.74334181,2799.2,2799.1,7.14514]
[1724521995196,0.74334181,2799.2,2799.1,8.58342698]
[1724521995679,1.11572213,2799.4,2799.3,3.57232]
[1724521996233,1.11572213,2799.4,2799.3,9.57354]
[1724521996434,0.74344927,2799.4,2799.3,9.57354]
[1724521996636,0.74344927,2799.6,2799.3,9.00122]
[1724521996932,0.74344927,2799.8,2799.7,3.57181]
[1724521997138,0.74344927,2799.8,2799.7,4.80786982]
[1724521997334,0.74344927,2799.9,2799.7,8.37967982]
[1724521997647,0.74322337,2799.9,2799.8,8.37941982]
[1724521997838,0.74322337,2800.0,2799.9,3.57155]
[1724521998239,0.74322337,2800.0,2799.9,7.1431]
[1724521998469,0.74322337,2800.0,2799.9,10.40991598]
[1724521998785,0.74322337,2800.2,2799.9,3.26681598]
[1724521999095,0.74322337,2800.3,2800.2,3.57117]
[1724521999237,1.11572213,2800.5,2800.2,3.57117]
[1724521999238,0.74322337,2800.4,2800.3,3.57104]
[1724521999797,1.11572213,2800.4,2800.3,3.57104]
[1724521999938,1.11572213,2800.5,2800.3,3.57104]
[1724522000139,0.74212111,2800.4,2800.3,3.57104]
[1724522001770,0.74212111,2800.5,2800.3,3.57104]
[1724522002079,0.74212111,2800.4,2800.3,3.57104]
[1724522002284,0.74212111,2800.5,2800.3,3.57104]
[1724522002484,0.74212111,2800.5,2800.1,4.80724982]
[1724522002692,0.74212111,2800.5,2800.2,3.57116]
[1724522005083,0.74212111,2800.6,2800.2,3.57116]
[1724522005858,0.74212111,2800.6,2800.1,9.4858764]
[1724522006186,2.488,2800.5,2800.1,9.4858764]
[1724522006982,2.488,2800.5,2800.1,5.9146564]
[1724522008477,2.488,2800.5,2800.0,6.57137]
[1724522010162,2.488,2800.5,2800.0,10.14272]
[1724522010366,2.488,2800.5,2800.0,6.57135]
[1724522010597,2.488,2800.5,2800.1,3.57129]
[1724522010899,0.036253,2800.4,2800.1,3.57129]
[1724522011898,0.036253,2800.4,2800.2,3.57109]
[1724522012258,3.17072111,2800.7,2800.2,3.57109]
[1724522012460,0.03625383,2800.6,2800.3,3.57096]
[1724522013864,0.03625383,2800.6,2800.4,3.57091]
[1724522014711,0.03625383,2800.6,2800.2,7.14216]
[1724522015055,0.03625383,2800.6,2800.2,3.57107]
[1724522016470,0.03625383,2800.6,2800.2,4.26268207]
[1724522017488,0.03625383,2800.6,2800.2,3.57107]
[1724522017673,0.03625383,2800.6,2800.0,27.50742982]
[1724522017674,2.4286,2800.5,2800.0,26.27132]
[1724522017860,0.036253,2800.4,2800.0,26.27132]
[1724522018256,0.036253,2800.4,2800.0,22.7]
[1724522018592,0.036253,2800.4,2800.1,4.5356]
[1724522018786,0.036253,2800.4,2800.3,3.57104]
[1724522018988,0.74212111,2800.9,2800.4,3.57091]
[1724522019499,0.03628283,2800.8,2800.4,3.57091]
[1724522020702,3.17072111,2801.0,2800.4,3.57091]
[1724522020703,0.03623373,2800.7,2800.4,3.57091]
[1724522021143,3.17072111,2801.0,2800.4,3.57091]
[1724522021437,0.74212111,2800.9,2800.4,3.57091]
[1724522021622,0.03623414,2800.8,2800.4,3.57091]
[1724522021997,0.03623414,2800.8,2800.6,3.57057]
[1724522022194,1.11572213,2801.1,2800.7,4.80658982]
[1724522022195,0.74212111,2801.1,2800.7,4.80658982]
[1724522022395,0.74212111,2801.1,2800.5,2.2656]
[1724522022396,0.74212111,2801.3,2800.9,4.80622982]
[1724522022648,0.03661999,2801.0,2800.9,8.37650982]
[1724522022795,1.11572213,2801.5,2800.9,8.37650982]
[1724522022796,0.74212111,2801.5,2801.1,3.56997]
[1724522023238,0.03662165,2801.4,2801.1,3.56997]
[1724522024725,3.17072111,2801.6,2801.1,3.56997]
[1724522024928,0.03686785,2801.3,2801.1,3.56997]
[1724522025130,3.17072111,2801.6,2800.9,5.83577]
[1724522025446,0.03693171,2801.2,2800.9,5.83577]
[1724522025742,0.0369313,2801.1,2801.0,2.553577]
[1724522026245,2.4286,2801.6,2801.0,2.553577]
[1724522026546,0.03693296,2801.5,2801.0,3.57013]
[1724522026742,0.03693296,2801.5,2800.9,5.83577]
[1724522026954,0.03693296,2801.5,2800.9,3.57017]
[1724522028548,0.03693296,2801.5,2800.9,7.14037]
[1724522028720,0.03693296,2801.5,2801.0,3.57014]
[1724522029124,0.03693296,2801.5,2800.9,3.57017]